lending/lending_fUSD_20250701
["ID","MTS","AMOUNT","RATE_DAILY","PERIOD"]
[368724534,1751328070092,352.18,0.00012717,2]
[368724535,1751328147301,1000.0,0.00027397,120]
[368724536,1751328165285,1189.95,0.00012691,2]
[368724537,1751328269010,543.7,0.00012681,2]
[368724538,1751328305840,16865.91,0.00013,2]
[368724539,1751328307586,16865.91,0.00013,2]
[368724540,1751328312784,16865.91,0.00013,2]
[368724541,1751328315303,16865.91,0.00013,2]
[368724542,1751328316436,16865.91,0.000131,2]
[368724543,1751328330605,512.0,0.00012337,2]
[368724545,1751328340145,162.58,0.00012737,2]
[368724546,1751328371906,14791.74,0.0001275,2]
[368724557,1751328607125,26952.35,0.00013,2]
[368724558,1751328618913,509.0,0.00027397,120]
[368724564,1751328631577,-250.0,0.00013127,2]
[368724565,1751328631587,-166.68,0.00013131,2]
[368724566,1751328631596,-2.66440664,0.00013179,2]
[368724567,1751328631609,-247.33559336,0.00013179,2]
[368724568,1751328631619,-2609.9404295,0.00013207,2]
[368724569,1751328631629,-155.2335229,0.00013231,2]
[368724570,1751328631638,-942.15,0.00013331,2]
[368724571,1751328631649,-250.0,0.00013331,2]
[368724572,1751328631658,-207.4,0.00013592,2]
[368724573,1751328631669,-1200.0,0.00013594,2]
[368724574,1751328631679,-1200.0,0.00013594,2]
[368724575,1751328631688,-300.0,0.00013598,2]
[368724576,1751328631698,-150.0,0.00013599,2]
[368724577,1751328631710,-300.0,0.00013599,2]
[368724578,1751328631720,-600.0,0.00013599,2]
[368724579,1751328631729,-1695.02473916,0.000136,2]
[368724580,1751328631741,-804.97526084,0.000136,2]
[368724581,1751328631751,-500.0,0.000136,2]
[368724582,1751328631761,-424.9307,0.000136,2]
[368724583,1751328631771,-2500.0,0.000136,2]
[368724584,1751328631781,-6535.56166975,0.000136,2]
[368724585,1751328631790,-1000.0,0.000136,2]
[368724586,1751328631800,-170.63,0.00013601,2]
[368724587,1751328631810,-713.91328281,0.00013633,2]
[368724588,1751328631822,-780.38859127,0.00013633,2]
[368724589,1751328631853,-1890.44816829,0.00013633,2]
[368724590,1751328631865,-3150.81162736,0.00013633,2]
[368724591,1751328631875,-2949.18837254,0.00013667,2]
[368724592,1751328631888,-3586.37329719,0.00013667,2]
[368724593,1751328631898,-2293.62670281,0.00013682,2]
[368724594,1751328631911,-1112.52713866,0.00013682,2]
[368724595,1751328631928,-500.0,0.00013692,2]
[368724596,1751328631938,-500.0,0.00013692,2]
[368724597,1751328631948,-500.0,0.00013692,2]
[368724598,1751328631959,-500.0,0.00013692,2]
[368724599,1751328631970,-437.47286634,0.00013692,2]
[368724600,1751328631983,-62.52713366,0.00013692,2]
[368724601,1751328631997,-500.0,0.00013692,2]
[368724602,1751328632007,-500.0,0.00013692,2]
[368724603,1751328632016,-237.47286634,0.00013692,2]
[368724604,1751328632032,-262.52713366,0.00013692,2]
[368724605,1751328632044,-500.0,0.00013692,2]
[368724606,1751328632054,-500.0,0.00013692,2]
[368724607,1751328632064,-151.0,0.00013692,2]
[368724608,1751328632075,-500.0,0.00013692,2]
[368724609,1751328632085,-500.0,0.00013692,2]
[368724610,1751328632094,-500.0,0.00013692,2]
[368724611,1751328632104,-493.39,0.00013699,2]
[368724612,1751328632115,-200.0,0.00013699,2]
[368724613,1751328632125,-162.46914835,0.00013699,2]
[368724614,1751328632135,-500.0,0.00013699,2]
[368724615,1751328632145,-401.14607666,0.00013699,2]
[368724616,1751328632155,-500.0,0.00013699,2]
[368724618,1751328632165,-500.0,0.00013699,2]
[368724619,1751328632175,-500.0,0.00013699,2]
[368724622,1751328632186,-446.5380961,0.00013699,2]
[368724623,1751328632196,-500.0,0.00013699,2]
[368724625,1751328632206,-830.22700367,0.000137,2]
[368724632,1751328632415,-438.21896973,0.000137,2]
[368724634,1751328632427,-2381.04070713,0.000137,2]
[368724637,1751328632438,-4614.66753364,0.000137,2]
[368724641,1751328632471,-27934.77808583,0.000137,2]
[368724643,1751328632480,-162964.016,0.000137,2]
[368724645,1751328632490,-1000.0,0.000137,2]
[368724647,1751328632499,-6535.56166973,0.000137,2]
[368724649,1751328632509,-1000.0,0.000137,2]
[368724651,1751328632518,-195.477122,0.00013719,2]
[368724653,1751328632528,-229.16004185,0.00013722,2]
[368724655,1751328632540,-4392.9384933,0.00013733,2]
[368724966,1751328637351,-2142.62317643,0.00013733,2]
[368724967,1751328637361,-6535.56166973,0.00013767,2]
[368724968,1751328637370,-835.8297818,0.00013768,2]
[368724969,1751328637380,-462.82,0.000138,2]
[368724971,1751328637389,-924.8,0.000138,2]
[368724972,1751328637400,-799.59,0.000138,2]
[368724973,1751328637410,-462.82,0.000138,2]
[368724974,1751328637419,-6535.56166973,0.000138,2]
[368724975,1751328637429,-1598.78,0.000138,2]
[368724976,1751328637439,-6535.56166973,0.00013833,2]
[368724977,1751328637448,-781.21304018,0.0001384,2]
[368724978,1751328637457,-150.0,0.00013843,2]
[368724979,1751328637466,-592.0,0.0001385,2]
[368724980,1751328637476,-1280.0,0.0001385,2]
[368724981,1751328637484,-560.0,0.0001385,2]
[368724982,1751328637494,-930.0,0.0001385,2]
[368724983,1751328637503,-758.59167161,0.0001385,2]
[368724984,1751328637515,-920.40832839,0.0001385,2]
[368724985,1751328637524,-1042.69793,0.0001386,2]
[368724986,1751328637533,-6535.56166973,0.00013867,2]
[368724987,1751328637543,-200.0,0.00013888,2]
[368724988,1751328637552,-170.72907272,0.00013889,2]
[368724989,1751328637634,-839.18532702,0.00013889,2]
[368724990,1751328637730,-153.08560026,0.00013889,2]
[368724991,1751328637740,-270.66113528,0.00013889,2]
[368725082,1751328639745,-269.810001,0.00013889,2]
[368725083,1751328639892,-316.52886372,0.00013889,2]
[368725084,1751328639904,-156.0,0.00013889,2]
[368725085,1751328639916,-4105.0,0.00013889,2]
[368725086,1751328639928,-7149.0,0.00013889,2]
[368725087,1751328639940,-221.24979179,0.00013895,2]
[368725088,1751328639952,-221.24979179,0.00013898,2]
[368725089,1751328639964,-151.76208582,0.000139,2]
[368725090,1751328639976,-492.71049822,0.000139,2]
[368725091,1751328639989,-221.24979179,0.000139,2]
[368725092,1751328640001,-295.91362852,0.000139,2]
[368725093,1751328640013,-5000.0,0.000139,2]
[368725094,1751328640025,-6535.56166973,0.000139,2]
[368725095,1751328640036,-547.83426506,0.000139,2]
[368725096,1751328640049,-2500.0,0.000139,2]
[368725097,1751328640061,-443.228,0.00013907,2]
[368725098,1751328640073,-174.4,0.00013907,2]
[368725099,1751328640085,-500.0,0.00013973,2]
[368725100,1751328640097,-500.0,0.00013973,2]
[368725101,1751328640110,-500.0,0.00013973,2]
[368725102,1751328640122,-434.39604139,0.00013973,2]
[368725103,1751328640134,-500.0,0.00013973,2]
[368725104,1751328640147,-500.0,0.00013973,2]
[368725105,1751328640159,-500.0,0.00013973,2]
[368725107,1751328640171,-200.0,0.00013979,2]
[368725109,1751328640183,-246.0,0.00013979,2]
[368725112,1751328640196,-225.519,0.00013979,2]
[368725114,1751328640207,-192.707,0.00013979,2]
[368725116,1751328640219,-187.501,0.00013979,2]
[368725118,1751328640231,-151.575,0.00013979,2]
[368725120,1751328640243,-219.612,0.00013979,2]
[368725123,1751328640254,-150.855,0.00013979,2]
[368725125,1751328640266,-286.205,0.00013979,2]
[368725127,1751328640277,-150.0,0.00013979,2]
[368725129,1751328640289,-151.434,0.00013979,2]
[368725131,1751328640303,-150.559,0.00013979,2]
[368725134,1751328640314,-208.446,0.00013979,2]
[368725136,1751328640326,-3341.0,0.00013979,2]
[368725138,1751328640338,-948.0,0.00013979,2]
[368725140,1751328640349,-639.0,0.00013979,2]
[368725142,1751328640361,-2009.0,0.00013979,2]
[368725145,1751328640372,-804.0,0.00013979,2]
[368725147,1751328640383,-151.48,0.0001399,2]
[368725149,1751328640395,-150.0,0.00013991,2]
[368725151,1751328640406,-150.0,0.00013991,2]
[368725153,1751328640417,-500.0,0.00013991,2]
[368725155,1751328640428,-150.0,0.00013991,2]
[368725158,1751328640440,-150.0,0.00013991,2]
[368725160,1751328640451,-150.0,0.00013991,2]
[368725162,1751328640463,-180.7817322,0.00013991,2]
[368725164,1751328640475,-500.0,0.00013991,2]
[368725166,1751328640486,-150.0,0.00013991,2]
[368725169,1751328640499,-150.0,0.00013991,2]
[368725171,1751328640510,-500.0,0.00013991,2]
[368725173,1751328640521,-150.0,0.00013991,2]
[368725175,1751328640534,-150.0,0.00013991,2]
[368725178,1751328640545,-1075.0,0.00013991,2]
[368725180,1751328640557,-500.0,0.00013991,2]
[368725182,1751328640568,-150.0,0.00013991,2]
[368725184,1751328640580,-500.0,0.00013991,2]
[368725186,1751328640593,-500.0,0.00013991,2]
[368725189,1751328640605,-1316.0,0.00013991,2]
[368725191,1751328640616,-2990.0,0.00013991,2]
[368725193,1751328640627,-500.0,0.00013991,2]
[368725195,1751328640639,-150.0,0.00013991,2]
[368725197,1751328640650,-500.0,0.00013991,2]
[368725200,1751328640664,-500.0,0.00013991,2]
[368725202,1751328640675,-150.0,0.00013991,2]
[368725204,1751328640688,-982.6244824,0.00013991,2]
[368725205,1751328640704,-2612.3755176,0.00013991,2]
[368725206,1751328640716,-610.0,0.00013991,2]
[368725207,1751328640728,-500.0,0.00013999,2]
[368725208,1751328640739,-170.95696493,0.00013999,2]
[368725209,1751328640750,-500.0,0.00013999,2]
[368725210,1751328640761,-500.0,0.00013999,2]
[368725211,1751328640773,-183.16460999,0.00013999,2]
[368725212,1751328640784,-176.1977158,0.00013999,2]
[368725213,1751328640795,-373.97664903,0.00014,2]
[368725215,1751328640807,-14668.27312772,0.00014,2]
[368725217,1751328640822,-153.03247001,0.00014,2]
[368725219,1751328640834,-100.06624948,0.00014,2]
[368725222,1751328640851,-303.15271724,0.00014,2]
[368725224,1751328640866,-252.78103328,0.00014,2]
[368725226,1751328640878,-76.78026672,0.00014,2]
[368725248,1751328641674,-282.0,0.00014,2]
[368725249,1751328641712,-2000.0,0.00014,2]
[368725250,1751328641745,-9881.74734073,0.00014,2]
[368725251,1751328641757,-55378.70185926,0.00014,2]
[368725252,1751328641768,-197761.25376531,0.00014,2]
[368725257,1751328643328,-886.0,0.00013889,2]
[368725258,1751328643339,-100.56,0.00014,2]
[368725259,1751328643420,-8633.75235222,0.00014,2]
[368725282,1751328645641,-957.77914718,0.00014,2]
[368725283,1751328645654,-500.0,0.00014,2]
[368725284,1751328645666,-2710.52970166,0.00014,2]
[368725285,1751328645701,-179569.62692734,0.00014,2]
[368725286,1751328645717,-610.68180385,0.00014,2]
[368725287,1751328645730,-479.83,0.00014,2]
[368725288,1751328645742,-180803.58730094,0.00014,2]
[368725289,1751328645754,-1486.78531383,0.00014,2]
[368725295,1751328645869,-514.73715875,0.00014,2]
[368725297,1751328645885,-367.64027045,0.00014,2]
[368725300,1751328645899,-618.95286713,0.00014,2]
[368725302,1751328645911,-488.23427687,0.00014,2]
[368725304,1751328645923,-800.7245,0.00014,2]
[368725306,1751328645935,-397.2198,0.00014,2]
[368725309,1751328645959,-602.0,0.00014,2]
[368725434,1751328664439,500.0,0.00012931,2]
[368725436,1751328930536,150.0,0.00025683,120]
[368725437,1751328938951,1000.0,0.00012873,2]
[368725438,1751329001114,23617.26,0.00012868,2]
[368725439,1751329064078,-199.79263668,0.00013409,2]
[368725440,1751329071323,-202.07066435,0.00013409,2]
[368725441,1751329074617,500.0,0.000273,120]
[368725442,1751329077337,-71.09669897,0.00013409,2]
[368725443,1751329077361,-174.04227371,0.00013504,2]
[368725444,1751329084831,-169.28752621,0.00013599,2]
[368725445,1751329087131,460.4531068,0.00013,2]
[368725446,1751329088788,529.0,0.000273,120]
[368725447,1751329089709,-301.06317523,0.00013599,2]
[368725448,1751329092372,-277.66525312,0.00013599,2]
[368725449,1751329094577,-295.46052661,0.00013599,2]
[368725450,1751329096405,-156.52351883,0.00013599,2]
[368725451,1751329096428,-338.30705207,0.00013599,2]
[368725452,1751329100292,-170.0,0.00013599,2]
[368725453,1751329103243,-555.12412004,0.00013599,2]
[368725454,1751329105845,-136.56882789,0.00013599,2]
[368725455,1751329105869,-159.0,0.00013599,2]
[368725456,1751329105893,-7.44074262,0.000136,2]
[368725457,1751329109063,-178.6279964,0.000136,2]
[368725458,1751329110150,-244.71591251,0.000136,2]
[368725459,1751329110726,150.0,0.00026903,120]
[368725460,1751329113694,-158.29561686,0.000136,2]
[368725461,1751329116750,-170.5707268,0.000136,2]
[368725462,1751329118389,-14.25430481,0.000136,2]
[368725463,1751329118413,-236.38756246,0.000136,2]
[368725464,1751329120456,-161.63610937,0.000136,2]
[368725465,1751329126668,-101.97632817,0.000136,2]
[368725466,1751329126695,-172.97168583,0.000136,2]
[368725467,1751329128462,-274.948014,0.000136,2]
[368725468,1751329131136,-191.64394574,0.000136,2]
[368725469,1751329134718,-254.78109649,0.000136,2]
[368725470,1751329138050,-234.62186598,0.000136,2]
[368725471,1751329141623,-158.96754142,0.000136,2]
[368725472,1751329142993,-151.95,0.000136,2]
[368725473,1751329145790,-46.72155054,0.000136,2]
[368725474,1751329145815,-132.36090804,0.000136,2]
[368725475,1751329148645,490.4494855,0.00013,2]
[368725476,1751329149975,-153.739976,0.000136,2]
[368725477,1751329152816,-159.75328413,0.000136,2]
[368725478,1751329154344,-302.2045764,0.000136,2]
[368725479,1751329157589,-153.739976,0.000136,2]
[368725480,1751329161708,-98.20127943,0.000136,2]
[368725481,1751329161733,-118.69437142,0.000136,2]
[368725482,1751329164406,-399.17095006,0.000136,2]
[368725483,1751329167020,-372.34450768,0.000136,2]
[368725484,1751329170714,150.0,0.00025123,120]
[368725485,1751329171733,-109.79017084,0.000136,2]
[368725486,1751329171757,-275.71856909,0.00013699,2]
[368725487,1751329173612,-190.90078116,0.00013699,2]
[368725488,1751329174963,-2.10064975,0.00013699,2]
[368725489,1751329174988,-200.0,0.00013699,2]
[368725490,1751329175013,-15.43072825,0.00013713,2]
[368725491,1751329179183,-134.56927175,0.00013713,2]
[368725492,1751329179207,-156.808378,0.00013719,2]
[368725493,1751329179233,-41.05112521,0.0001372,2]
[368725494,1751329182575,-108.94887479,0.0001372,2]
[368725495,1751329182599,-47.85950321,0.00013723,2]
[368725496,1751329188128,-102.14049679,0.00013723,2]
[368725497,1751329188156,-54.80849597,0.00013725,2]
[368725498,1751329190400,-95.19150403,0.00013725,2]
[368725499,1751329190430,-110.23999396,0.00013727,2]
[368725500,1751329192694,-189.76000604,0.00013727,2]
[368725501,1751329192728,-56.71144109,0.00013728,2]
[368725502,1751329194958,-156.808379,0.00013727,2]
[368725503,1751329194986,-93.28855891,0.00013728,2]
[368725504,1751329195012,-63.02952799,0.00013728,2]
[368725505,1751329196531,-156.808379,0.00013728,2]
[368725506,1751329198867,-80.16209301,0.00013728,2]
[368725507,1751329198895,-150.0,0.00013729,2]
[368725508,1751329198925,-1.82775054,0.00013729,2]
[368725509,1751329202491,-148.17224946,0.00013729,2]
[368725510,1751329202517,-150.0,0.0001373,2]
[368725511,1751329202543,-13.72675185,0.00013731,2]
[368725512,1751329204749,-303.49177904,0.0001373,2]
[368725513,1751329206852,-169.93,0.00013276,2]
[368725514,1751329207272,-18.43762331,0.0001373,2]
[368725515,1751329208402,-155.43156785,0.0001373,2]
[368725516,1751329210998,-358.69597115,0.0001373,2]
[368725517,1751329217690,-150.0,0.00013719,2]
[368725518,1751329217714,-131.87189404,0.0001373,2]
[368725519,1751329220268,-297.89260678,0.0001373,2]
[368725520,1751329224648,-159.0,0.0001373,2]
[368725521,1751329224724,4238.06,0.00012993,2]
[368725522,1751329227382,-290.26082498,0.0001373,2]
[368725523,1751329228636,-170.0,0.0001373,2]
[368725524,1751329231383,-151.0,0.0001373,2]
[368725525,1751329234145,-318.0,0.0001373,2]
[368725526,1751329236790,-145.91773285,0.0001373,2]
[368725527,1751329236814,-22.08226715,0.0001373,2]
[368725528,1751329239483,-161.75760288,0.0001373,2]
[368725529,1751329242344,-185.467959,0.00013729,2]
[368725530,1751329242369,-66.16012997,0.0001373,2]
[368725531,1751329242394,-21.83421061,0.00013731,2]
[368725532,1751329262305,452.74,0.0001289,2]
[368725533,1751329263065,-114.43903754,0.00013731,2]
[368725534,1751329263103,-71.02892146,0.00013735,2]
[368725535,1751329308584,-287.989828,0.00013665,2]
[368725536,1751329316743,-300.0,0.00013665,2]
[368725537,1751329351528,150.0,0.00026747,120]
[368725538,1751329410925,150.0,0.00025833,120]
[368725539,1751329472479,150.0,0.00026186,120]
[368725546,1751329646069,250.0,0.00012844,2]
[368725547,1751329653500,6821.06,0.00013101,2]
[368725548,1751329655294,73281.71,0.00012844,2]
[368725554,1751329722491,456.645,0.00027397,120]
[368725557,1751329742689,-167.47,0.00013103,2]
[368725558,1751329745582,-342.42618452,0.00013103,2]
[368725559,1751329750162,-23.10381548,0.00013103,2]
[368725560,1751329767153,171.73,0.0002699,120]
[368725596,1751329808233,192.434,0.00027397,120]
[368725655,1751329832309,-363.898656,0.00013541,2]
[368725657,1751329832319,-161.75760288,0.00013609,2]
[368725659,1751329832329,-459.53,0.00013699,2]
[368725661,1751329832338,-716.17278948,0.000137,2]
[368725670,1751329832450,-283.82721052,0.000137,2]
[368725671,1751329832460,-150.0,0.00013709,2]
[368725672,1751329832471,-185.467959,0.00013719,2]
[368725673,1751329832481,-150.0,0.0001372,2]
[368725674,1751329832491,-150.0,0.00013723,2]
[368725675,1751329832503,-78.97107854,0.00013735,2]
[368725676,1751329832513,-305.97559769,0.00013735,2]
[368725677,1751329832523,-305.97559769,0.00013735,2]
[368725678,1751329832534,-151.0,0.00013735,2]
[368725679,1751329832544,-150.0,0.00013742,2]
[368725681,1751329832554,-150.0,0.00013753,2]
[368725683,1751329832564,-150.0,0.00013757,2]
[368725685,1751329832574,-150.0,0.00013759,2]
[368725687,1751329832584,-1200.0,0.00013761,2]
[368725689,1751329832593,-150.0,0.00013762,2]
[368725691,1751329832609,-466.0,0.00013762,2]
[368725693,1751329832619,-600.0,0.00013762,2]
[368725696,1751329832629,-150.0,0.00013763,2]
[368725698,1751329832639,-300.0,0.00013764,2]
[368725700,1751329832649,-300.0,0.00013764,2]
[368725702,1751329832659,-207.4,0.00013764,2]
[368725704,1751329832669,-300.0,0.00013764,2]
[368725706,1751329832679,-300.0,0.00013764,2]
[368725707,1751329832689,-4729.78055656,0.00013764,2]
[368725710,1751329832703,-449.32685517,0.00013764,2]
[368725719,1751329832781,-300.0,0.00013764,2]
[368725721,1751329832793,-900.79397535,0.00013764,2]
[368725726,1751329832827,-251.04915166,0.00013764,2]
[368725733,1751329832893,-281.69146126,0.00013764,2]
[368725735,1751329832903,-157.0,0.00013764,2]
[368725737,1751329832913,-500.0,0.00013764,2]
[368725738,1751329832923,-151.0,0.00013764,2]
[368725739,1751329832933,-500.0,0.00013764,2]
[368725740,1751329832943,-500.0,0.00013764,2]
[368725741,1751329832953,-500.0,0.00013764,2]
[368725742,1751329832963,-500.0,0.00013764,2]
[368725743,1751329832973,-500.0,0.00013764,2]
[368725744,1751329832983,-500.0,0.00013764,2]
[368725745,1751329832993,-214.24430861,0.00013764,2]
[368725746,1751329833002,-350.91952791,0.00013764,2]
[368725747,1751329833014,-149.08047209,0.00013764,2]
[368725748,1751329833024,-500.0,0.00013764,2]
[368725749,1751329833035,-402.51348765,0.00013764,2]
[368725750,1751329833091,-97.48651235,0.00013764,2]
[368725751,1751329833102,-500.0,0.00013764,2]
[368725752,1751329833113,-500.0,0.00013764,2]
[368725753,1751329833122,-500.0,0.00013764,2]
[368725754,1751329833132,-500.0,0.00013764,2]
[368725755,1751329833142,-500.0,0.00013764,2]
[368725756,1751329833152,-500.0,0.00013764,2]
[368725757,1751329833162,-500.0,0.00013764,2]
[368725758,1751329833172,-668.65185757,0.00013764,2]
[368725759,1751329833182,-835.8297818,0.00013766,2]
[368725760,1751329833193,-1413.68812569,0.0001378,2]
[368725761,1751329833203,-150.0,0.0001379,2]
[368725762,1751329833214,-1000.0,0.00013793,2]
[368725763,1751329833225,-150.0,0.00013796,2]
[368725764,1751329833235,-500.0,0.000138,2]
[368725765,1751329833246,-500.0,0.000138,2]
[368725766,1751329833257,-150.0,0.00013805,2]
[368725767,1751329833272,-150.0,0.00013808,2]
[368725768,1751329833283,-150.0,0.00013812,2]
[368725769,1751329833295,-7168.409754,0.00013819,2]
[368725770,1751329833305,-150.0,0.00013821,2]
[368725771,1751329833316,-150.0,0.00013825,2]
[368725772,1751329833326,-150.0,0.0001383,2]
[368725773,1751329833338,-1413.68812565,0.00013851,2]
[368725774,1751329833349,-150.0,0.00013854,2]
[368725775,1751329833360,-344.23839665,0.0001386,2]
[368725776,1751329833371,-150.0,0.00013861,2]
[368725777,1751329833382,-150.0,0.00013869,2]
[368725778,1751329833393,-2500.0,0.00013872,2]
[368725779,1751329833404,-7433.6409149,0.00013874,2]
[368725780,1751329833415,-16130.87896378,0.00013879,2]
[368725781,1751329833960,-23609.91268654,0.00013879,2]
[368725782,1751329833972,-515.232,0.00013879,2]
[368725783,1751329835199,753.72,0.00012844,2]
[368725826,1751329838605,-716.35585539,0.00013879,2]
[368725827,1751329838617,-2507.31011201,0.00013879,2]
[368725828,1751329838682,-1073.4,0.00013879,2]
[368725829,1751329838786,-11066.0,0.00013879,2]
[368725830,1751329838798,-413.85624419,0.00013879,2]
[368725831,1751329838809,-12013.98887099,0.00013879,2]
[368725832,1751329838831,-3878.54396139,0.00013879,2]
[368725833,1751329838842,-1999.09185184,0.00013879,2]
[368725834,1751329838853,-644.04,0.00013879,2]
[368725850,1751329840339,-1169.64656956,0.00013879,2]
[368725856,1751329840396,-1189.44821093,0.00013879,2]
[368725860,1751329840431,-23694.58446679,0.00013879,2]
[368725990,1751329846323,-911.009296,0.00013879,2]
[368725991,1751329958026,1000.0,0.00012958,2]
[368725993,1751330132537,160.48,0.00013,2]
[368725994,1751330133942,150.0,0.00013111,4]
[368725995,1751330213266,190.24778864,0.00013045,2]
[368725999,1751330267450,226.37,0.00012869,2]
[368726000,1751330400611,639.7056638,0.00027397,120]
[368726002,1751330535820,-241.193987,0.00013144,2]
[368726003,1751330672713,167.0,0.000273,120]
[368726004,1751330692031,168.13,0.000273,120]
[368726010,1751330819497,1984.2,0.00027397,120]
[368726033,1751330838759,200.0,0.00012865,7]
[368726037,1751330930879,1000.0,0.00012827,2]
[368726038,1751331028822,669350.06654094,0.000128,2]
[368726039,1751331028846,4230.14617184,0.000128,2]
[368726040,1751331028870,40000.0,0.000128,2]
[368726041,1751331028895,40000.0,0.000128,2]
[368726042,1751331028919,40000.0,0.000128,2]
[368726043,1751331028947,40000.0,0.000128,2]
[368726044,1751331028973,40000.0,0.000128,2]
[368726045,1751331028997,40000.0,0.000128,2]
[368726046,1751331029027,40000.0,0.000128,2]
[368726047,1751331029051,40000.0,0.000128,2]
[368726048,1751331029078,40000.0,0.000128,2]
[368726049,1751331029103,40000.0,0.000128,2]
[368726050,1751331029127,40000.0,0.000128,2]
[368726051,1751331029150,40000.0,0.000128,2]
[368726052,1751331029174,40000.0,0.000128,2]
[368726053,1751331029198,40000.0,0.000128,2]
[368726054,1751331029221,40000.0,0.000128,2]
[368726055,1751331029244,40000.0,0.000128,2]
[368726056,1751331029267,40000.0,0.000128,2]
[368726057,1751331029291,40000.0,0.000128,2]
[368726058,1751331029318,40000.0,0.000128,2]
[368726059,1751331029342,40000.0,0.000128,2]
[368726060,1751331029364,40000.0,0.000128,2]
[368726061,1751331029388,1194.79645595,0.000128,2]
[368726118,1751331032820,-167.14,0.00013244,2]
[368726120,1751331032831,-250.0,0.00013422,2]
[368726122,1751331032841,-250.0,0.00013587,2]
[368726124,1751331032851,-537.56020667,0.000136,2]
[368726126,1751331032863,-462.43979333,0.000136,2]
[368726128,1751331032873,-600.0,0.00013696,2]
[368726130,1751331032883,-1200.0,0.00013697,2]
[368726132,1751331032893,-207.4,0.00013698,2]
[368726134,1751331032903,-6912.642,0.00013698,2]
[368726136,1751331032913,-74.29737738,0.00013699,2]
[368726153,1751331033053,-362.25262262,0.00013699,2]
[368726155,1751331033064,-150.0,0.00013735,2]
[368726157,1751331033074,-88.50150344,0.0001374,2]
[368726159,1751331033088,-268.61,0.0001374,2]
[368726161,1751331033100,-269.652,0.0001374,2]
[368726163,1751331033111,-718.30226286,0.0001374,2]
[368726166,1751331033124,-1204.16977347,0.0001374,2]
[368726168,1751331033137,-1010.58646023,0.0001374,2]
[368726170,1751331033146,-3325.8839124,0.0001375,2]
[368726173,1751331033166,-233.9380876,0.0001375,2]
[368726175,1751331033176,-832.80639183,0.00013753,2]
[368726278,1751331038158,-724.37242159,0.00013753,2]
[368726279,1751331038288,-781.54225956,0.00013753,2]
[368726280,1751331038301,-251.21010654,0.00013753,2]
[368726281,1751331038335,-571.42212123,0.00013753,2]
[368726282,1751331038347,-4007.05645325,0.00013753,2]
[368726283,1751331038356,-3559.82201,0.0001378,2]
[368726284,1751331038366,-150.0,0.00013783,2]
[368726285,1751331038375,-150.0,0.00013791,2]
[368726286,1751331038385,-39.13919176,0.00013792,2]
[368726287,1751331038429,-529.16789749,0.00013792,2]
[368726288,1751331038438,-500.0,0.00013792,2]
[368726289,1751331038448,-164.7352794,0.00013792,2]
[368726290,1751331038460,-335.2647206,0.00013792,2]
[368726291,1751331038470,-454.84727932,0.00013792,2]
[368726295,1751331038625,-45.15272068,0.00013792,2]
[368726296,1751331038635,-403.79497282,0.00013792,2]
[368726297,1751331038648,-182.67443672,0.00013792,2]
[368726298,1751331038657,-500.0,0.00013792,2]
[368726299,1751331038667,-500.0,0.00013792,2]
[368726300,1751331038677,-500.0,0.00013792,2]